fUST/lending_fUST_20241116
["ID","MTS","AMOUNT","RATE_DAILY","PERIOD"]
[342326783,1731723122264,-500.0,0.00013698,2]
[342326784,1731723122299,-500.0,0.00013698,2]
[342326785,1731723122330,-500.0,0.00013698,2]
[342326786,1731723122362,-500.0,0.00013698,2]
[342326787,1731723122392,-500.0,0.00013698,2]
[342326788,1731723122421,-500.0,0.00013698,2]
[342326789,1731723122451,-500.0,0.00013698,2]
[342326790,1731723122480,-500.0,0.00013698,2]
[342326791,1731723122508,-500.0,0.00013698,2]
[342326792,1731723122537,-500.0,0.00013698,2]
[342326793,1731723122565,-500.0,0.00013698,2]
[342326794,1731723122594,-500.0,0.00013698,2]
[342326795,1731723122622,-500.0,0.00013698,2]
[342326796,1731723122653,-500.0,0.00013698,2]
[342326797,1731723122683,-183.52624129,0.00013698,2]
[342326798,1731723122713,-500.0,0.00013698,2]
[342326799,1731723122744,-203.39101345,0.00013698,2]
[342326800,1731723122775,-500.0,0.00013698,2]
[342326801,1731723122804,-500.0,0.00013698,2]
[342326802,1731723122833,-500.0,0.00013698,2]
[342326803,1731723122863,-2336.0,0.00013698,2]
[342326804,1731723122894,-500.0,0.00013698,2]
[342326805,1731723122924,-500.0,0.00013698,2]
[342326806,1731723122953,-500.0,0.00013698,2]
[342326807,1731723122982,-500.0,0.00013698,2]
[342326808,1731723123007,-500.0,0.00013698,2]
[342326809,1731723123033,-500.0,0.00013698,2]
[342326810,1731723123059,-500.0,0.00013698,2]
[342326811,1731723123085,-500.0,0.00013698,2]
[342326812,1731723123111,-500.0,0.00013698,2]
[342326813,1731723123138,-500.0,0.00013698,2]
[342326814,1731723123369,-512.15619818,0.00013698,2]
[342326815,1731723123403,-1923.29,0.00013698,2]
[342326816,1731723123428,-494.27987336,0.00013698,2]
[342326817,1731723123454,-500.0,0.00013698,2]
[342326818,1731723123480,-500.0,0.00013698,2]
[342326819,1731723123506,-500.0,0.00013698,2]
[342326820,1731723123531,-151.0,0.00013698,2]
[342326821,1731723123556,-173.827328,0.00013698,2]
[342326822,1731723123580,-417.36464606,0.00013698,2]
[342326823,1731723123605,-506.27009788,0.00013698,2]
[342326824,1731723123630,-500.0,0.00013698,2]
[342326825,1731723123654,-278.10053165,0.00013698,2]
[342326826,1731723123679,-500.0,0.00013698,2]
[342326827,1731723123703,-505.47633055,0.00013698,2]
[342326828,1731723123730,-500.0,0.00013698,2]
[342326829,1731723123756,-500.0,0.00013698,2]
[342326830,1731723123781,-500.0,0.00013698,2]
[342326831,1731723123806,-505.30058339,0.00013698,2]
[342326832,1731723123831,-1686.65,0.00013698,2]
[342326833,1731723123856,-500.0,0.00013698,2]
[342326834,1731723123882,-219.91649228,0.00013698,2]
[342326835,1731723123908,-327.65239147,0.00013698,2]
[342326836,1731723123933,-500.0,0.00013698,2]
[342326837,1731723123958,-505.8495891,0.00013698,2]
[342326838,1731723123983,-506.99395521,0.00013698,2]
[342326839,1731723124008,-500.0,0.00013698,2]
[342326840,1731723124033,-500.0,0.00013698,2]
[342326841,1731723124085,-500.0,0.00013698,2]
[342326842,1731723124200,-500.0,0.00013698,2]
[342326843,1731723124247,-500.0,0.00013698,2]
[342326844,1731723124273,-500.0,0.00013698,2]
[342326845,1731723124300,-151.0,0.00013698,2]
[342326846,1731723124327,-151.0,0.00013698,2]
[342326847,1731723124355,-151.0,0.00013698,2]
[342326848,1731723124382,-151.0,0.00013698,2]
[342326849,1731723124408,-151.0,0.00013698,2]
[342326850,1731723124435,-151.0,0.00013698,2]
[342326851,1731723124462,-151.0,0.00013698,2]
[342326852,1731723124487,-505.5,0.00013698,2]
[342326853,1731723124513,-151.0,0.00013698,2]
[342326854,1731723124539,-151.0,0.00013698,2]
[342326855,1731723124564,-226.558944,0.00013698,2]
[342326856,1731723124590,-151.0,0.00013698,2]
[342326857,1731723124627,-151.0,0.00013698,2]
[342326858,1731723124654,-151.0,0.00013698,2]
[342326859,1731723124681,-151.0,0.00013698,2]
[342326860,1731723124708,-151.0,0.00013698,2]
[342326861,1731723124734,-151.0,0.00013698,2]
[342326862,1731723124761,-287.555628,0.00013698,2]
[342326863,1731723124786,-500.0,0.00013698,2]
[342326864,1731723124812,-500.0,0.00013698,2]
[342326865,1731723124838,-500.0,0.00013698,2]
[342326866,1731723124865,-612.84709132,0.00013698,2]
[342326867,1731723124890,-504.93373412,0.00013698,2]
[342326868,1731723124916,-500.0,0.00013698,2]
[342326869,1731723124941,-505.43066807,0.00013698,2]
[342326870,1731723124967,-500.0,0.00013698,2]
[342326871,1731723124993,-510.22533576,0.00013698,2]
[342326872,1731723125020,-506.3442772,0.00013698,2]
[342326873,1731723125046,-505.73090678,0.00013698,2]
[342326874,1731723125072,-503.14266215,0.00013698,2]
[342326875,1731723125101,-645.89180219,0.00013698,2]
[342326876,1731723125127,-500.0,0.00013698,2]
[342326877,1731723125153,-505.30252691,0.00013698,2]
[342326878,1731723125180,-500.0,0.00013698,2]
[342326879,1731723125206,-500.0,0.00013698,2]
[342326880,1731723125232,-500.0,0.00013698,2]
[342326881,1731723125257,-500.0,0.00013698,2]
[342326882,1731723125281,-368.33926462,0.00013698,2]
[342326883,1731723125306,-507.57911716,0.00013698,2]
[342326884,1731723125331,-485.06667739,0.00013698,2]
[342326885,1731723125356,-618.09832523,0.00013698,2]
[342326886,1731723125380,-500.0,0.00013698,2]
[342326887,1731723125406,-245.818252,0.00013698,2]
[342326888,1731723125430,-504.42014303,0.00013698,2]
[342326889,1731723125455,-500.0,0.00013698,2]
[342326890,1731723125479,-515.01674283,0.00013698,2]
[342326891,1731723125502,-502.0297331,0.00013698,2]
[342326892,1731723125526,-501.88268583,0.00013698,2]
[342326893,1731723125551,-520.1898405,0.00013698,2]
[342326894,1731723125575,-500.0,0.00013698,2]
[342326895,1731723125601,-151.0,0.00013698,2]
[342326896,1731723125625,-507.42669225,0.00013698,2]
[342326897,1731723125649,-270.355666,0.00013698,2]
[342326898,1731723125673,-507.90634064,0.00013698,2]
[342326899,1731723125697,-500.0,0.00013698,2]
[342326900,1731723125721,-643.27,0.00013698,2]
[342326901,1731723125745,-504.03283074,0.00013698,2]
[342326902,1731723125769,-500.0,0.00013698,2]
[342326903,1731723125793,-500.0,0.00013698,2]
[342326904,1731723125817,-531.59341399,0.00013698,2]
[342326905,1731723125842,-504.26122092,0.00013698,2]
[342326906,1731723125870,-501.50537831,0.00013698,2]
[342326907,1731723125894,-639.51715985,0.00013698,2]
[342326908,1731723125918,-500.0,0.00013698,2]
[342326909,1731723125942,-589.35646737,0.00013698,2]
[342326910,1731723125966,-506.67779847,0.00013698,2]
[342326911,1731723125991,-500.0,0.00013698,2]
[342326912,1731723126015,-506.63073201,0.00013698,2]
[342326913,1731723126039,-500.0,0.00013698,2]
[342326914,1731723126065,-500.0,0.00013698,2]
[342326915,1731723126090,-505.16789864,0.00013698,2]
[342326916,1731723126128,-369.65239787,0.00013698,2]
[342326917,1731723126154,-504.01212197,0.00013698,2]
[342326918,1731723126179,-505.50169901,0.00013698,2]
[342326919,1731723126206,-500.0,0.00013698,2]
[342326920,1731723126391,-501.8401228,0.00013698,2]
[342326921,1731723126418,-500.0,0.00013698,2]
[342326922,1731723126445,-500.0,0.00013698,2]
[342326923,1731723126470,-607.18230304,0.00013698,2]
[342326924,1731723126495,-500.0,0.00013698,2]
[342326925,1731723126520,-483.78792494,0.00013698,2]
[342326926,1731723126545,-500.0,0.00013698,2]
[342326927,1731723126569,-500.0,0.00013698,2]
[342326928,1731723126595,-1060.58,0.00013698,2]
[342326929,1731723126619,-372.84065744,0.00013698,2]
[342326930,1731723126644,-501.43514122,0.00013698,2]
[342326931,1731723126668,-507.10371781,0.00013698,2]
[342326932,1731723126692,-500.0,0.00013698,2]
[342326933,1731723126716,-500.0,0.00013698,2]
[342326934,1731723126740,-500.0,0.00013698,2]
[342326935,1731723126764,-503.84389418,0.00013698,2]
[342326936,1731723126788,-532.22691886,0.00013698,2]
[342326937,1731723126812,-1694.05,0.00013698,2]
[342326938,1731723126836,-500.0,0.00013698,2]
[342326939,1731723126862,-503.73163906,0.00013698,2]
[342326940,1731723126887,-505.90736687,0.00013698,2]
[342326941,1731723126911,-500.0,0.00013698,2]
[342326942,1731723126936,-1662.58,0.00013698,2]
[342326943,1731723126961,-168.630914,0.00013698,2]
[342326944,1731723126985,-508.41939729,0.00013698,2]
[342326945,1731723127010,-11419.04722929,0.00013698,2]
[342326946,1731723140715,-477.70252483,0.00013598,2]
[342326947,1731723140740,-300.0,0.00013697,2]
[342326948,1731723140765,-157.42292499,0.00013697,2]
[342326949,1731723140790,-594.85319858,0.00013697,2]
[342326950,1731723140817,-12706.74277071,0.00013698,2]
[342326951,1731723140842,-245.743037,0.00013698,2]
[342326952,1731723140869,-245.743037,0.00013698,2]
[342326953,1731723140893,-237.0492221,0.00013698,2]
[342326954,1731723140917,-245.743037,0.00013698,2]
[342326955,1731723141077,-245.743037,0.00013698,2]
[342326956,1731723141104,-245.743037,0.00013698,2]
[342326957,1731723141131,-245.743037,0.00013698,2]
[342326958,1731723141157,-245.743037,0.00013698,2]
[342326959,1731723141182,-245.743037,0.00013698,2]
[342326960,1731723141207,-245.743037,0.00013698,2]
[342326961,1731723141233,-245.743037,0.00013698,2]
[342326962,1731723141258,-245.743037,0.00013698,2]
[342326963,1731723141283,-245.743037,0.00013698,2]
[342326964,1731723141310,-245.743037,0.00013698,2]
[342326965,1731723141336,-245.743037,0.00013698,2]
[342326966,1731723141361,-245.743037,0.00013698,2]
[342326967,1731723141386,-245.743037,0.00013698,2]
[342326968,1731723141411,-245.743037,0.00013698,2]
[342326969,1731723141435,-245.743037,0.00013698,2]
[342326970,1731723141460,-503.30604749,0.00013698,2]
[342326971,1731723141486,-245.743037,0.00013698,2]
[342326972,1731723141511,-245.743037,0.00013698,2]
[342326973,1731723141536,-2007.19,0.00013698,2]
[342326974,1731723141561,-500.0,0.00013698,2]
[342326975,1731723141585,-500.0,0.00013698,2]
[342326976,1731723141610,-3168.54,0.00013698,2]
[342326977,1731723141635,-500.0,0.00013698,2]
[342326978,1731723141659,-500.0,0.00013698,2]
[342326979,1731723141684,-500.0,0.00013698,2]
[342326980,1731723141709,-359.73368225,0.00013698,2]
[342326981,1731723141734,-500.0,0.00013698,2]
[342326982,1731723141759,-500.0,0.00013698,2]
[342326983,1731723141784,-500.0,0.00013698,2]
[342326984,1731723141808,-500.0,0.00013698,2]
[342326985,1731723141833,-500.0,0.00013698,2]
[342326986,1731723141860,-500.0,0.00013698,2]
[342326987,1731723141885,-500.0,0.00013698,2]
[342326988,1731723141910,-1001.08,0.00013698,2]
[342326989,1731723141936,-500.0,0.00013698,2]
[342326990,1731723141961,-500.0,0.00013698,2]
[342326991,1731723141985,-1362.09,0.00013698,2]
[342326992,1731723142011,-2351.15,0.00013698,2]
[342326993,1731723142036,-2146.72,0.00013698,2]
[342326994,1731723142060,-500.0,0.00013698,2]
[342326995,1731723142086,-241.5184388,0.00013698,2]
[342326996,1731723142112,-196.07124332,0.00013698,2]
[342326997,1731723142137,-524.47819521,0.00013698,2]
[342326998,1731723142161,-500.0,0.00013698,2]
[342326999,1731723142185,-514.27389396,0.00013698,2]
[342327000,1731723142210,-500.0,0.00013698,2]
[342327001,1731723142238,-2225.83,0.00013698,2]
[342327002,1731723142263,-500.0,0.00013698,2]
[342327003,1731723142287,-500.0,0.00013698,2]
[342327004,1731723142311,-500.0,0.00013698,2]
[342327005,1731723142334,-500.0,0.00013698,2]
[342327006,1731723142361,-500.0,0.00013698,2]
[342327007,1731723142385,-850.1,0.00013698,2]
[342327008,1731723142409,-4493.98,0.00013698,2]
[342327009,1731723142433,-500.0,0.00013698,2]
[342327010,1731723142457,-500.0,0.00013698,2]
[342327011,1731723142481,-2445.63,0.00013698,2]
[342327012,1731723142504,-2012.56,0.00013698,2]
[342327013,1731723142527,-500.0,0.00013698,2]
[342327014,1731723142551,-13058.33,0.00013698,2]
[342327015,1731723142575,-500.0,0.00013698,2]
[342327016,1731723142598,-500.0,0.00013698,2]
[342327017,1731723142624,-500.0,0.00013698,2]
[342327018,1731723142649,-503.56267994,0.00013698,2]
[342327019,1731723142673,-505.6263023,0.00013698,2]
[342327020,1731723142699,-633.4,0.00013698,2]
[342327021,1731723142724,-768.81,0.00013698,2]
[342327022,1731723142749,-500.0,0.00013698,2]
[342327023,1731723142773,-5027.78,0.00013698,2]
[342327024,1731723142798,-151.0,0.00013698,2]
[342327025,1731723142821,-500.0,0.00013698,2]
[342327026,1731723142846,-151.0,0.00013698,2]
[342327027,1731723142873,-151.0,0.00013698,2]
[342327028,1731723142897,-501.97145226,0.00013698,2]
[342327029,1731723142922,-151.0,0.00013698,2]
[342327030,1731723142950,-1754.09,0.00013698,2]
[342327031,1731723142974,-151.0,0.00013698,2]
[342327032,1731723142998,-151.0,0.00013698,2]
[342327033,1731723143023,-809.97,0.00013698,2]
[342327034,1731723143048,-151.0,0.00013698,2]
[342327035,1731723143072,-556.18079437,0.00013698,2]
[342327036,1731723143097,-500.0,0.00013698,2]
[342327037,1731723143125,-500.0,0.00013698,2]
[342327038,1731723143149,-2170.98,0.00013698,2]
[342327039,1731723143175,-500.0,0.00013698,2]
[342327040,1731723143199,-500.0,0.00013698,2]
[342327041,1731723143225,-503.70956655,0.00013698,2]
[342327042,1731723143249,-500.0,0.00013698,2]
[342327043,1731723143274,-500.0,0.00013698,2]
[342327044,1731723143300,-500.0,0.00013698,2]
[342327045,1731723143325,-500.0,0.00013698,2]
[342327046,1731723143348,-500.0,0.00013698,2]
[342327047,1731723143374,-505.09479777,0.00013698,2]
[342327048,1731723143398,-546.62,0.00013698,2]
[342327049,1731723143422,-500.0,0.00013698,2]
[342327050,1731723143446,-1168.38,0.00013698,2]
[342327051,1731723143470,-504.15416213,0.00013698,2]
[342327052,1731723143499,-500.0,0.00013698,2]
[342327053,1731723143524,-225.00516835,0.00013698,2]
[342327054,1731723143548,-523.55,0.00013698,2]
[342327055,1731723143572,-440.22038626,0.00013698,2]
[342327056,1731723143595,-504.42576297,0.00013698,2]
[342327057,1731723143619,-500.0,0.00013698,2]
[342327058,1731723143643,-500.0,0.00013698,2]
[342327059,1731723143666,-362.31733646,0.00013698,2]
[342327060,1731723143691,-75.9387084,0.00013698,2]
[342327064,1731723192427,5999.999999,0.00015,30]
[342327267,1731724236054,-1373.915936,0.00012124,2]
[342327268,1731724236065,-162.477982,0.00012616,2]
[342327269,1731724236076,-162.477982,0.00012623,2]
[342327270,1731724236087,-162.477982,0.0001263,2]
[342327271,1731724236097,-162.477982,0.00012637,2]
[342327272,1731724236107,-503.6988605,0.0001264,2]
[342327273,1731724236118,-162.477982,0.00012644,2]
[342327274,1731724236128,-162.477982,0.00012651,2]
[342327275,1731724236138,-162.477982,0.00012659,2]
[342327276,1731724236149,-162.477982,0.00012666,2]
[342327277,1731724236160,-162.477982,0.00012673,2]
[342327278,1731724236171,-162.477982,0.0001268,2]
[342327279,1731724236182,-581.96765217,0.00013484,2]
[342327280,1731724236193,-300.0,0.00013584,2]
[342327281,1731724236204,-300.0,0.00013584,2]
[342327282,1731724236218,-9120.65804175,0.00013585,2]
[342327283,1731724236229,-9101.23839697,0.00013598,2]
[342327284,1731724236239,-342.29441074,0.00013598,2]
[342327285,1731724236250,-1000.0,0.00013598,2]
[342327286,1731724236262,-495.71099882,0.00013697,2]
[342327287,1731724236273,-832.89091049,0.00013698,2]
[342327288,1731724236284,-500.0,0.00013698,2]
[342327289,1731724236294,-500.0,0.00013698,2]
[342327290,1731724236305,-174.10774139,0.00013698,2]
[342327291,1731724236316,-197.5244739,0.00013698,2]
[342327292,1731724236327,-500.0,0.00013698,2]
[342327293,1731724236339,-500.0,0.00013698,2]
[342327294,1731724236349,-500.0,0.00013698,2]
[342327295,1731724236359,-500.0,0.00013698,2]
[342327296,1731724236369,-500.0,0.00013698,2]
[342327297,1731724236380,-500.0,0.00013698,2]
[342327298,1731724236391,-466.80355076,0.00013698,2]
[342327299,1731724236401,-500.0,0.00013698,2]
[342327300,1731724236412,-500.0,0.00013698,2]
[342327301,1731724236424,-500.0,0.00013698,2]
[342327302,1731724236435,-500.0,0.00013698,2]
[342327303,1731724236446,-500.0,0.00013698,2]
[342327304,1731724236459,-500.0,0.00013698,2]
[342327305,1731724236470,-500.0,0.00013698,2]
[342327306,1731724236481,-500.0,0.00013698,2]
[342327307,1731724236491,-500.0,0.00013698,2]
[342327308,1731724236501,-500.0,0.00013698,2]
[342327309,1731724236512,-500.0,0.00013698,2]
[342327310,1731724236525,-500.0,0.00013698,2]
[342327311,1731724236535,-500.0,0.00013698,2]
[342327312,1731724236547,-500.0,0.00013698,2]
[342327313,1731724236560,-500.0,0.00013698,2]
[342327314,1731724236574,-502.34137514,0.00013698,2]
[342327315,1731724236586,-500.0,0.00013698,2]
[342327316,1731724236598,-500.0,0.00013698,2]
[342327317,1731724236610,-500.0,0.00013698,2]
[342327318,1731724236622,-500.0,0.00013698,2]
[342327319,1731724236633,-500.0,0.00013698,2]
[342327320,1731724236647,-500.0,0.00013698,2]
[342327321,1731724236659,-500.0,0.00013698,2]
[342327322,1731724236670,-500.0,0.00013698,2]
[342327323,1731724236681,-500.0,0.00013698,2]
[342327324,1731724236691,-500.0,0.00013698,2]
[342327325,1731724236703,-500.0,0.00013698,2]
[342327326,1731724236715,-500.0,0.00013698,2]
[342327327,1731724236726,-500.0,0.00013698,2]
[342327328,1731724236736,-224.48747761,0.00013698,2]
[342327329,1731724236747,-500.0,0.00013698,2]
[342327330,1731724236757,-138.18312051,0.00013698,2]
[342327346,1731724238977,-581.96765215,0.00013491,2]
[342327347,1731724238987,-581.96765215,0.00013498,2]
[342327348,1731724238997,-361.81687949,0.00013698,2]
[342327349,1731724239007,-500.0,0.00013698,2]
[342327350,1731724239018,-500.0,0.00013698,2]
[342327351,1731724239027,-500.0,0.00013698,2]
[342327352,1731724239037,-224.44187021,0.00013698,2]
[342327391,1731724243975,-2044.27596597,0.00013434,2]
[342327416,1731724246848,-343.72403403,0.00013434,2]
[342327417,1731724246858,-268.80001403,0.00013698,2]
[342327448,1731725250215,1001.1,0.00025999,60]
[342327487,1731725431890,-632.7341005,0.00011921,2]
[342327489,1731725431903,-3000.0,0.00012504,2]
[342327492,1731725431914,-1078.83571998,0.00012542,2]
[342327494,1731725431924,-300.0,0.00012571,2]
[342327496,1731725431935,-300.0,0.00012571,2]
[342327498,1731725431946,-13013.50327952,0.00012572,2]
[342327511,1731725432083,-3120.99711537,0.00012572,2]
[342327514,1731725432098,-8765.49960511,0.00012572,2]
[342327516,1731725432110,-183.7367301,0.00012642,2]
[342327518,1731725432121,-9541.8120023,0.0001277,2]
[342327521,1731725432133,-2445.73478342,0.000129,2]
[342327523,1731725432143,-1296.97870363,0.000129,2]
[342327525,1731725432153,-2372.0,0.00013422,2]
[342327527,1731725432163,-994.17599277,0.00013425,2]
[342327529,1731725432175,-212.2918136,0.000135,2]
[342327531,1731725432184,-2388.0,0.00013554,2]
[342327533,1731725432195,-717.222,0.00013554,2]
[342327536,1731725432208,-152.0,0.00013558,2]
[342327538,1731725432219,-473.44120471,0.00013697,2]
[342327540,1731725432231,-413.09249901,0.00013697,2]
[342327542,1731725432242,-6.75811576,0.00013698,2]
[342327544,1731725432251,-500.0,0.00013698,2]
[342327546,1731725432262,-500.0,0.00013698,2]
[342327549,1731725432275,-500.0,0.00013698,2]
[342327551,1731725432287,-500.0,0.00013698,2]
[342327553,1731725432298,-500.0,0.00013698,2]
[342327555,1731725432308,-500.0,0.00013698,2]
[342327558,1731725432319,-500.0,0.00013698,2]
[342327560,1731725432329,-500.0,0.00013698,2]
[342327562,1731725432340,-500.0,0.00013698,2]
[342327564,1731725432351,-500.0,0.00013698,2]
[342327566,1731725432362,-500.0,0.00013698,2]
[342327568,1731725432372,-500.0,0.00013698,2]
[342327571,1731725432383,-500.0,0.00013698,2]
[342327573,1731725432394,-500.0,0.00013698,2]
[342327575,1731725432404,-500.0,0.00013698,2]
[342327577,1731725432415,-500.0,0.00013698,2]
[342327579,1731725432426,-500.0,0.00013698,2]
[342327581,1731725432436,-500.0,0.00013698,2]
[342327583,1731725432447,-500.0,0.00013698,2]
[342327586,1731725432463,-500.0,0.00013698,2]
[342327588,1731725432474,-500.0,0.00013698,2]
[342327590,1731725432484,-500.0,0.00013698,2]
[342327592,1731725432494,-500.0,0.00013698,2]
[342327594,1731725432505,-500.0,0.00013698,2]
[342327596,1731725432516,-500.0,0.00013698,2]
[342327598,1731725432527,-500.0,0.00013698,2]
[342327600,1731725432538,-159.85246155,0.00013698,2]
[342327696,1731725443057,-344.24374918,0.00013697,2]
[342327697,1731725443067,-340.14753845,0.00013698,2]
[342327698,1731725443078,-500.0,0.00013698,2]
[342327699,1731725443088,-500.0,0.00013698,2]
[342327700,1731725443097,-500.0,0.00013698,2]
[342327701,1731725443107,-336.32871237,0.00013698,2]
[342327702,1731725443120,-163.67128763,0.00013698,2]
[342327703,1731725443129,-500.0,0.00013698,2]
[342327704,1731725443140,-500.0,0.00013698,2]
[342327705,1731725443152,-160.73871237,0.00013698,2]
[342327706,1731725443165,-339.26128763,0.00013698,2]
[342327707,1731725443177,-500.0,0.00013698,2]
[342327708,1731725443187,-500.0,0.00013698,2]
[342327709,1731725443199,-500.0,0.00013698,2]
[342327710,1731725443209,-637.75176282,0.00013698,2]
[342327711,1731725443218,-619.61691631,0.00013698,2]
[342327740,1731726406248,175.10951489,0.00025999,60]
[342327799,1731726632303,-516.1327671,0.00012649,2]
[342327802,1731726632316,-2435.3547022,0.00012649,2]
[342327804,1731726632326,-300.0,0.00012661,2]
[342327806,1731726632335,-300.0,0.00012661,2]
[342327808,1731726632344,-1125.25416047,0.00012662,2]
[342327891,1731726638421,-995.93668275,0.00012662,2]
[342327892,1731726638432,-534.46,0.00012662,2]
[342327907,1731726643200,-12667.44023663,0.00012662,2]
[342327921,1731726646333,-457.4,0.00012662,2]
[342327923,1731726646344,-153.85447485,0.00012662,2]
[342327924,1731726646355,-323.64925403,0.00013554,2]
[342327981,1731727832387,-1261.8982131,0.00012648,2]
[342327982,1731727832398,-906.3188675,0.00012658,2]
[342327983,1731727832407,-4432.12717159,0.00013,2]
[342327984,1731727832417,-201.57267244,0.0001345,2]
[342327985,1731727832426,-300.0,0.00013597,2]
[342327986,1731727832436,-83.93164027,0.00013597,2]
[342328002,1731727838377,-216.06835973,0.00013597,2]
[342328003,1731727838387,-2390.74442318,0.00013598,2]
[342328004,1731727838396,-340.83945173,0.00013598,2]
[342328005,1731727838405,-205.84776516,0.00013697,2]
[342328020,1731727846324,-1904.003,0.0001355,2]
[342328021,1731727846334,-81.02202582,0.00013697,2]
[342328022,1731727846344,-252.56183012,0.00013697,2]
[342328023,1731727846353,-676.53115635,0.00013698,2]
[342328024,1731727896197,178.0,0.00026,60]
[342328026,1731728315394,188.99,0.00010959,2]
[342328027,1731728326065,314.99,0.00010959,2]
[342328028,1731728336463,393.74,0.00010959,2]
[342328029,1731728347213,328.11,0.00010959,2]
[342328030,1731728357804,328.11,0.00010959,2]
[342328031,1731728368398,328.12,0.00010959,2]
[342328032,1731728379018,440.53,0.00010959,2]
[342328033,1731728389526,367.1,0.00010959,2]
[342328034,1731728400100,432.51,0.00010959,2]
[342328035,1731728410682,402.62,0.00010959,2]
[342328037,1731728421274,370.68,0.00010959,2]
[342328038,1731728432135,338.2,0.00010959,2]
[342328039,1731728442657,428.35,0.00010959,2]
[342328040,1731728453229,356.96,0.00010959,2]
[342328041,1731728463764,297.47,0.00010959,2]
[342328042,1731728474512,247.89,0.00010959,2]
[342328043,1731728485047,206.58,0.00010959,2]
[342328044,1731728495615,172.15,0.00010959,2]
[342328045,1731728506190,860.75,0.00010959,2]
[342328046,1731728568015,311.47,0.00010959,2]
[342328047,1731728578603,259.56,0.00010959,2]
[342328048,1731728589177,216.3,0.00010959,2]
[342328049,1731728600019,180.25,0.00010959,2]
[342328050,1731728610811,150.21,0.00010959,2]
[342328051,1731728621356,751.05,0.00010959,2]
[342328417,1731729040568,-410.1794934,0.00012698,2]
[342328418,1731729040577,-5164.8508447,0.000127,2]
[342328419,1731729040587,-247.03167578,0.00013598,2]
[342328587,1731729465482,3898.99649351,0.00026,60]
[342328610,1731730061704,206.82680931,0.0001,2]
[342328682,1731730463366,538.11,0.00010959,2]
[342328683,1731730473914,448.42,0.00010959,2]
[342328684,1731730484343,1193.9,0.00025999,60]
[342328685,1731730484450,373.69,0.00010959,2]
[342328686,1731730494991,311.4,0.00010959,2]
[342328687,1731730505589,259.5,0.00010959,2]
[342328688,1731730516112,216.25,0.00010959,2]
[342328689,1731730526646,180.21,0.00010959,2]
[342328690,1731730537522,150.18,0.00010959,2]
[342328691,1731730547960,750.91,0.00010959,2]
[342328716,1731731271431,250.0,0.00010967,2]
[342328717,1731731287083,176.86533396,0.00010967,2]
[342328758,1731731432743,-250.0,0.00011078,2]
[342328759,1731731432753,-2773.10880517,0.00011078,2]
[342328778,1731731441186,-226.89119483,0.00011078,2]
[342328779,1731731441196,-300.0,0.00011086,2]
[342328780,1731731441205,-300.0,0.00011086,2]
[342328781,1731731441214,-3931.75583017,0.00011087,2]
[342328807,1731731517038,154.56,0.00010959,2]
[342328808,1731731527583,772.84,0.00010959,2]
[342328809,1731731529592,500.000001,0.00011,2]
[342328810,1731731568269,500.0,0.00026,60]
[342328889,1731732631860,-6283.72776338,0.00011358,2]
[342328892,1731732631872,-532.2941378,0.00011572,2]
[342328894,1731732631882,-300.0,0.0001169,2]